[Event "Catalan Youth Championship 2024"]
[Site "Cambrils"]
[Date "2024.03.24"]
[Round "3.10"]
[White "Miro Garcia, Julia"]
[Black "Prada Villagrasa, Pau Manel"]
[Result "0-1"]
[ECO "D41"]
[WhiteElo "1822"]
[BlackElo "2103"]
[Annotator "RC"]
[PlyCount "64"]
[EventDate "2024.03.13"]
[EventType "swiss"]
[EventCountry "ESP"]
[SourceTitle "playchess.com"]
[Source "ChessBase"]
[SourceQuality "1"]
[TimeControl "5400+30"]

1. d4 {[%emt 0:00:03]} d5 {[%emt 0:00:05]} 2. c4 {[%emt 0:00:04]} e6 {[%emt 0:00:03]} 3. Nc3 {[%emt 0:00:07]} Nf6 {[%emt 0:00:04]} 4. cxd5 {[%emt 0:00:08]} Nxd5 {[%emt 0:00:05]} 5. e4 {[%emt 0:00:42]} Nxc3 {[%emt 0:00:06]} 6. bxc3 {[%emt 1:32:26]} c5 {[%emt 0:00:32]} 7. Nf3 {[%emt 0:00:00]} cxd4 {[%emt 0:00:26]} 8. cxd4 {[%emt 0:00:00]} Bb4+ {[%emt 0:00:12]} 9. Bd2 {[%emt 0:00:00]} Bxd2+ {[%emt 0:00:11]} 10. Qxd2 {[%emt 0:00:00]} O-O {[%emt 0:00:46]} 11. Bc4 {[%emt 0:00:00]} Nd7 {[%emt 0:01:23]} 12. O-O {[%emt 0:00:00]} b6 {[%emt 0:00:44]} 13. Rfe1 {[%emt 0:00:00]} Bb7 {[%emt 0:01:14]} 14. Rad1 {[%emt 0:00:00]} Rc8 {[%emt 0:03:45]} 15. Bd3 {[%emt 0:00:00]} h6 {[%emt 0:04:40]} 16. Bb1 {[%emt 0:00:00]} Qc7 {[%emt 0:02:17]} 17. Rc1 {[%emt 0:00:00]} Qb8 {[%emt 0:00:07]} 18. Qe3 {[%emt 0:00:00]} Rxc1 {[%emt 0:01:02]} 19. Rxc1 {[%emt 0:00:00]} Rc8 {[%emt 0:00:04]} 20. Rc3 {[%emt 0:00:00]} Nf6 {[%emt 0:01:49]} 21. Rxc8+ {[%emt 0:00:00]} Qxc8 {[%emt 0:00:06]} 22. Ne1 {[%emt 0:00:00]} a5 {[%emt 0:03:09]} 23. f3 {[%emt 0:00:00]} b5 {[%emt 0:04:00]} 24. Bc2 {[%emt 0:00:00]} b4 {[%emt 0:01:19]} 25. Qb3 {[%emt 0:00:00]} Ba6 {[%emt 0:01:09]} 26. Bd3 {[%emt 0:00:00]} Qc1 {[%emt 0:03:21]} 27. Kf1 {[%emt 0:00:00]} a4 {[%emt 0:00:59]} 28. Qxb4 {[%emt 0:00:00]} Bxd3+ {[%emt 0:00:10]} 29. Kf2 {[%emt 0:00:00]} Bc4 {[%emt 0:01:10]} 30. a3 {[%emt 0:00:00]} Kh7 {[%emt 0:01:01]} 31. g4 {[%emt 0:00:00]} Ba6 {[%emt 0:00:27]} 32. Qc5 {[%emt 0:00:00]} Qd2+ {[%emt 0:00:25]} 0-1

[Event "Catalan Youth Championship 2024"]
[Site "Cambrils"]
[Date "2024.03.24"]
[Round "3.11"]
[White "Herman Gamazo, Isaac"]
[Black "Marsal Calvet, Josep"]
[Result "1-0"]
[ECO "B12"]
[WhiteElo "2096"]
[BlackElo "1830"]
[Annotator "NA RC"]
[PlyCount "53"]
[EventDate "2024.03.13"]
[EventType "swiss"]
[EventCountry "ESP"]
[SourceTitle "playchess.com"]
[Source "ChessBase"]
[SourceQuality "1"]
[TimeControl "5400+30"]

1. e4 {[%emt 0:00:10]} c6 {[%emt 0:00:25]} 2. d4 {[%emt 0:00:14]} d5 {[%emt 0:00:35]} 3. e5 {[%emt 0:00:07]} Bf5 {[%emt 0:00:52]} 4. h4 {[%emt 0:00:07]} h5 {[%emt 0:00:14]} 5. Bd3 {[%emt 0:00:06]} Bxd3 {[%emt 0:01:22]} 6. Qxd3 {[%emt 0:00:13]} e6 {[%emt 0:00:43]} 7. Bg5 {[%emt 0:00:17] B12: Caro-Kann: Advance Variation.} Be7 {[%emt 0:02:48]} 8. Nf3 {[%emt 0:00:56]} Qa5+ {[%emt 0:02:17]} 9. Nbd2 {[%emt 0:01:03]} Qa6 {[%emt 0:01:49]} 10. c4 {[%emt 0:00:21]} Nd7 {[%emt 0:02:00]} 11. O-O {[%emt 0:01:02]} Nb6 {[%emt 0:09:36]} (11... Bxg5 $14 12. Nxg5 Ne7) 12. b3 {[%emt 0:01:06]} O-O-O {[%emt 0:06:00]} ({Better is} 12... Rd8 $14) 13. Bxe7 {[%emt 0:02:07]} Nxe7 {[%emt 0:01:10]} 14. a4 {[%emt 0:01:31]} dxc4 {[%emt 0:08:43]} 15. bxc4 {[%emt 0:00:26]} c5 {[%emt 0:02:35]} 16. a5 {[%emt 0:00:20]} Nd7 {[%emt 0:01:49]} 17. Ne4 {[%emt 0:03:30]} Nf5 {[%emt 0:02:47]} 18. Qc3 {[%emt 0:12:32]} ({Not} 18. Nxc5 Nxc5 19. Qc3 Nd7 $17 (19... Ne4 20. Qc2 $15)) (18. Rfb1 $18 {and White stays clearly on top.}) 18... Qc6 {[%emt 0:06:48]} 19. Nxc5 {[%emt 0:05:34]} Nxc5 {[%emt 0:00:15]} 20. dxc5 {[%emt 0:00:09]} Qxc5 {[%emt 0:00:30]} 21. Rfb1 {[%emt 1:09:09]} Nd4 {[%emt 0:03:11]} 22. Nxd4 {[%emt 0:00:00]} Qxd4 {[%emt 0:01:52]} 23. Qf3 $18 {[%emt 0:00:00]} Qd7 {[%emt 0:10:41]} 24. a6 {[%emt 0:00:00]} Qc6 {[%emt 0:06:45]} 25. axb7+ {[%emt 0:00:00]} Kc7 {[%emt 0:00:07]} 26. b8=Q+ {[%emt 0:00:00]} Rxb8 {[%emt 0:00:53]} 27. Rxa7+ {[%emt 0:00:00]} 1-0

[Event "Catalan Youth Championship 2024"]
[Site "Cambrils"]
[Date "2024.03.24"]
[Round "3.12"]
[White "Escoriza Pons, Xavier"]
[Black "Roure Sola, Oriol"]
[Result "1-0"]
[ECO "A22"]
[WhiteElo "1941"]
[BlackElo "1821"]
[Annotator "RC"]
[PlyCount "101"]
[EventDate "2024.03.13"]
[EventType "swiss"]
[EventCountry "ESP"]
[SourceTitle "playchess.com"]
[Source "ChessBase"]
[SourceQuality "1"]
[TimeControl "5400+30"]

1. c4 {[%emt 0:00:25]} e5 {[%emt 0:00:17]} 2. Nc3 {[%emt 0:00:13]} Nc6 {[%emt 0:00:19]} 3. g3 {[%emt 0:00:17]} Bc5 {[%emt 0:00:20]} 4. Bg2 {[%emt 0:00:37]} Nf6 {[%emt 0:01:09]} 5. e3 {[%emt 0:00:38]} a6 {[%emt 0:00:30]} 6. a3 {[%emt 1:31:20]} d6 {[%emt 0:01:41]} 7. Nge2 {[%emt 0:00:00]} O-O {[%emt 1:29:44]} 8. O-O {[%emt 0:01:00]} Ba7 {[%emt 0:00:30]} 9. d4 {[%emt 0:00:30]} exd4 {[%emt 0:00:00]} 10. exd4 {[%emt 0:00:00]} Bf5 11. h3 {[%emt 0:01:00]} Qd7 {[%emt 0:01:30]} 12. Kh2 {[%emt 0:00:00]} h6 {[%emt 0:00:30]} 13. b4 {[%emt 0:01:00]} Rae8 {[%emt 0:00:30]} 14. Be3 {[%emt 0:00:30]} Nd8 {[%emt 0:00:30]} 15. Nf4 {[%emt 0:00:00]} c6 {[%emt 0:00:00]} 16. a4 {[%emt 0:00:00]} g5 {[%emt 0:01:00]} 17. Nfe2 {[%emt 0:01:30]} Ne4 {[%emt 0:00:30]} 18. b5 {[%emt 0:00:30]} d5 {[%emt 0:00:30]} 19. cxd5 {[%emt 0:00:30]} cxd5 {[%emt 0:00:00]} 20. Qb3 {[%emt 0:00:30]} Nxc3 {[%emt 0:00:00]} 21. Nxc3 {[%emt 0:00:00]} Be4 {[%emt 0:00:00]} 22. Nxd5 {[%emt 0:00:00]} Bxd5 {[%emt 0:00:00]} 23. Qxd5 {[%emt 0:01:30]} Re7 {[%emt 0:00:00]} 24. Qxd7 {[%emt 0:00:00]} Rxd7 {[%emt 0:03:00]} 25. d5 {[%emt 0:01:00]} Bb8 {[%emt 0:00:00]} 26. Bc5 {[%emt 0:00:30]} Re8 {[%emt 0:00:00]} 27. Rfe1 {[%emt 0:00:00]} Re5 {[%emt 0:01:30]} 28. Bd4 {[%emt 0:00:00]} Rxe1 {[%emt 0:00:00]} 29. Rxe1 {[%emt 0:01:30]} Kf8 {[%emt 0:01:00]} 30. bxa6 {[%emt 0:00:00]} bxa6 {[%emt 0:00:30]} 31. Rb1 {[%emt 0:01:00]} Rb7 {[%emt 0:00:30]} 32. Rxb7 {[%emt 0:00:00]} Nxb7 {[%emt 0:00:00]} 33. Bf1 {[%emt 0:00:00]} a5 {[%emt 0:00:00]} 34. Bb6 {[%emt 0:01:30]} Bd6 {[%emt 0:01:30]} 35. Ba6 {[%emt 0:00:00]} Bc5 {[%emt 0:00:30]} 36. Bc7 {[%emt 0:00:00]} Bd6 {[%emt 0:00:00]} 37. Bxd6+ {[%emt 0:00:00]} Nxd6 {[%emt 0:00:00]} 38. Bd3 {[%emt 0:00:00]} Ke7 {[%emt 0:00:00]} 39. Kg2 {[%emt 0:02:30]} Nc8 {[%emt 0:02:00]} 40. Bc4 {[%emt 0:00:30]} Nb6 {[%emt 0:00:30]} 41. Bb3 {[%emt 0:00:00]} Kd6 {[%emt 0:00:00]} 42. Kf3 {[%emt 0:01:00]} f5 {[%emt 0:00:00]} 43. g4 {[%emt 0:00:00]} fxg4+ {[%emt 0:00:00]} 44. Kxg4 {[%emt 0:00:00]} Nxd5 {[%emt 0:00:00]} 45. Bxd5 {[%emt 0:00:00]} Kxd5 {[%emt 0:00:00]} 46. Kh5 {[%emt 0:02:00]} Ke5 {[%emt 0:00:00]} 47. Kxh6 {[%emt 0:00:00]} Kf6 {[%emt 0:00:00]} 48. Kh5 {[%emt 0:00:00]} Kf5 {[%emt 0:00:00]} 49. f3 {[%emt 0:00:00]} Kf6 {[%emt 0:00:00]} 50. Kg4 {[%emt 0:00:00]} Kg6 {[%emt 0:00:00]} 51. f4 {[%emt 0:00:00]} 1-0

[Event "Catalan Youth Championship 2024"]
[Site "Cambrils"]
[Date "2024.03.24"]
[Round "3.13"]
[White "Mangues Rubia, Oriol"]
[Black "Salinas Tomas, Daniel"]
[Result "0-1"]
[ECO "B23"]
[WhiteElo "1963"]
[BlackElo "2386"]
[Annotator "RC"]
[PlyCount "80"]
[EventDate "2024.03.13"]
[EventType "swiss"]
[EventCountry "ESP"]
[SourceTitle "playchess.com"]
[Source "ChessBase"]
[SourceQuality "1"]
[TimeControl "5400+30"]

1. e4 {[%emt 0:00:03]} c5 {[%emt 0:00:02]} 2. Nc3 {[%emt 0:00:09]} Nc6 {[%emt 0:00:02]} 3. Bb5 {[%emt 0:00:07]} Nd4 {[%emt 0:00:06]} 4. Nf3 {[%emt 0:00:08]} a6 {[%emt 0:00:04]} 5. Bd3 {[%emt 0:00:05]} g6 {[%emt 0:00:04]} 6. Nxd4 {[%emt 0:02:31]} cxd4 {[%emt 0:00:10]} 7. Ne2 {[%emt 0:00:04]} d5 {[%emt 0:00:04]} 8. c3 {[%emt 0:03:45]} dxe4 {[%emt 0:00:14]} 9. Bxe4 {[%emt 0:00:17]} dxc3 {[%emt 0:01:15]} 10. dxc3 {[%emt 0:11:13]} Qxd1+ {[%emt 0:00:37]} 11. Kxd1 {[%emt 0:00:02]} Nf6 {[%emt 0:00:33]} 12. Bc2 {[%emt 0:07:04]} Bd7 {[%emt 0:02:21]} 13. f3 {[%emt 0:00:53]} Bg7 {[%emt 0:02:10]} 14. Ke1 {[%emt 0:02:02]} O-O {[%emt 0:02:02]} 15. Kf2 {[%emt 0:02:12]} e5 {[%emt 0:01:22]} 16. Re1 {[%emt 0:03:44]} Bc6 {[%emt 0:02:00]} 17. Ng3 {[%emt 0:01:43]} Rfe8 {[%emt 0:03:37]} 18. Be3 {[%emt 0:12:20]} Nd5 {[%emt 0:02:14]} 19. Bc5 {[%emt 0:01:13]} b6 {[%emt 0:22:06]} 20. Ba3 {[%emt 0:01:01]} f5 {[%emt 0:05:02]} 21. Bb3 {[%emt 0:09:08]} Rad8 {[%emt 0:07:15]} 22. Rad1 {[%emt 0:01:30]} Kh8 {[%emt 0:00:59]} 23. Bc4 {[%emt 0:13:02]} b5 {[%emt 0:03:16]} 24. Bf1 {[%emt 0:00:15]} h5 {[%emt 0:03:07]} 25. c4 {[%emt 0:03:42]} Nf4 {[%emt 0:02:08]} 26. cxb5 {[%emt 0:01:05]} axb5 {[%emt 0:04:45]} 27. Rd6 {[%emt 0:03:16]} Rxd6 {[%emt 0:01:27]} 28. Bxd6 {[%emt 0:00:04]} h4 {[%emt 0:00:39]} 29. Nh1 {[%emt 0:00:06]} Re6 {[%emt 0:00:47]} 30. Bb8 {[%emt 0:05:55]} Nd5 {[%emt 0:06:16]} 31. Rd1 {[%emt 0:00:44]} e4 {[%emt 0:02:53]} 32. fxe4 {[%emt 0:05:04]} fxe4 {[%emt 0:00:27]} 33. Bxb5 {[%emt 0:02:06]} e3+ {[%emt 0:00:12]} 34. Ke1 {[%emt 0:00:19]} Bxb5 {[%emt 0:00:29]} 35. Rxd5 {[%emt 0:00:14]} Bc6 {[%emt 0:00:09]} 36. Rg5 {[%emt 0:03:36]} Bxb2 {[%emt 0:00:26]} 37. Bf4 {[%emt 0:01:30]} h3 {[%emt 0:02:18]} 38. Ng3 {[%emt 0:01:46]} Bc3+ {[%emt 0:01:27]} 39. Kd1 {[%emt 0:00:37]} Ba4+ {[%emt 0:00:28]} 40. Ke2 {[%emt 0:00:10]} hxg2 {[%emt 0:00:11]} 0-1

[Event "Catalan Youth Championship 2024"]
[Site "Cambrils"]
[Date "2024.03.24"]
[Round "3.14"]
[White "Sviridenko, Yaroslav"]
[Black "Aleksanyan Israilyan, Nicolas"]
[Result "1-0"]
[ECO "C48"]
[WhiteElo "1961"]
[BlackElo "2045"]
[Annotator "RC"]
[PlyCount "143"]
[EventDate "2024.03.13"]
[EventType "swiss"]
[EventCountry "ESP"]
[SourceTitle "playchess.com"]
[Source "ChessBase"]
[SourceQuality "1"]
[TimeControl "5400+30"]

1. e4 {[%emt 0:00:05]} e5 {[%emt 0:00:32]} 2. Nf3 {[%emt 0:00:06]} Nc6 {[%emt 0:00:01]} 3. Nc3 {[%emt 0:00:10]} Nf6 {[%emt 0:00:06]} 4. Bb5 {[%emt 0:00:08]} Nd4 {[%emt 0:00:07]} 5. O-O {[%emt 1:32:31]} Be7 {[%emt 0:01:58]} 6. d3 {[%emt 0:00:00]} O-O {[%emt 1:30:46]} 7. Nxe5 {[%emt 0:00:00]} d6 {[%emt 0:00:00]} 8. Nf3 {[%emt 0:00:00]} Bg4 {[%emt 0:00:00]} 9. Be3 {[%emt 0:02:00]} Nxf3+ {[%emt 0:00:00]} 10. gxf3 {[%emt 0:00:00]} Bh5 {[%emt 0:02:00]} 11. d4 {[%emt 0:01:00]} Nd7 {[%emt 0:00:00]} 12. Be2 {[%emt 0:00:00]} f5 {[%emt 0:00:00]} 13. Nd5 {[%emt 0:00:00]} g5 {[%emt 0:00:00]} 14. f4 {[%emt 0:00:00]} Bxe2 {[%emt 0:00:00]} 15. Qxe2 {[%emt 0:00:00]} fxe4 {[%emt 0:00:00]} 16. Qg4 {[%emt 0:00:00]} Nf6 {[%emt 0:00:00]} 17. Qe6+ {[%emt 0:00:00]} Rf7 {[%emt 0:00:00]} 18. Nxe7+ {[%emt 0:00:00]} Qxe7 {[%emt 0:00:00]} 19. Qxe7 {[%emt 0:00:00]} Rxe7 {[%emt 0:00:00]} 20. fxg5 {[%emt 0:00:00]} Nd5 {[%emt 0:05:00]} 21. Bd2 {[%emt 0:00:00]} b5 {[%emt 0:00:00]} 22. Rfe1 {[%emt 0:00:00]} Nb6 {[%emt 0:00:00]} 23. b3 {[%emt 0:00:00]} Rf8 {[%emt 0:00:00]} 24. Re3 {[%emt 0:06:30]} Ref7 {[%emt 0:00:00]} 25. Rf1 {[%emt 0:00:00]} d5 {[%emt 0:00:00]} 26. Bb4 {[%emt 0:00:00]} Rd8 {[%emt 0:03:00]} 27. f4 {[%emt 0:00:00]} Rf5 {[%emt 0:00:00]} 28. Kg2 {[%emt 0:00:00]} Rd7 {[%emt 0:00:00]} 29. Kg3 {[%emt 0:00:00]} Rdf7 {[%emt 0:00:00]} 30. h4 {[%emt 0:00:00]} Nc8 {[%emt 0:00:00]} 31. Rc3 {[%emt 0:00:00]} Nd6 {[%emt 0:00:00]} 32. Bxd6 {[%emt 0:00:00]} cxd6 {[%emt 0:00:00]} 33. Kg4 {[%emt 0:00:00]} Rf8 {[%emt 0:00:00]} 34. h5 {[%emt 0:00:00]} h6 {[%emt 0:00:00]} 35. g6 {[%emt 0:00:00]} b4 {[%emt 0:00:00]} 36. Rc7 {[%emt 0:00:00]} a5 {[%emt 0:00:00]} 37. Re7 {[%emt 0:00:00]} R8f6 {[%emt 0:00:00]} 38. Rc7 {[%emt 0:00:00]} Rf8 {[%emt 0:00:00]} 39. c3 {[%emt 0:00:00]} R5f6 {[%emt 0:00:00]} 40. cxb4 {[%emt 0:00:07]} axb4 {[%emt 0:00:00]} 41. f5 {[%emt 0:08:23]} Re8 {[%emt 0:00:00]} 42. Rc2 {[%emt 0:00:00]} Kg7 {[%emt 0:00:00]} 43. Rc7+ {[%emt 0:00:00]} Kg8 {[%emt 0:00:00]} 44. Rfc1 {[%emt 0:00:00]} Ref8 {[%emt 0:00:00]} 45. g7 {[%emt 0:00:11]} R8f7 {[%emt 0:00:00]} 46. Rxf7 {[%emt 0:00:11]} Rxf7 {[%emt 0:00:00]} 47. Rc6 {[%emt 0:00:39]} Rxg7+ {[%emt 0:00:00]} 48. Kf4 {[%emt 0:00:09]} Rg5 {[%emt 0:11:00]} 49. Rxd6 {[%emt 0:00:51]} Rxh5 {[%emt 0:00:00]} 50. Rxd5 {[%emt 0:00:18]} Rh4+ {[%emt 0:00:00]} 51. Ke3 {[%emt 0:00:18]} Kf7 {[%emt 0:00:00]} 52. Rb5 {[%emt 0:02:53]} Kf6 {[%emt 0:00:00]} 53. Rxb4 {[%emt 0:00:00]} Kxf5 {[%emt 0:00:00]} 54. Rb5+ {[%emt 0:00:00]} Ke6 {[%emt 0:00:00]} 55. a4 {[%emt 0:00:00]} Kd6 {[%emt 0:00:00]} 56. a5 {[%emt 0:00:00]} Kc6 {[%emt 0:00:00]} 57. Rb6+ {[%emt 0:00:14]} Kd5 {[%emt 0:00:00]} 58. Rb5+ {[%emt 0:00:04]} Kc6 {[%emt 0:00:00]} 59. Rc5+ {[%emt 0:00:07]} Kb7 {[%emt 0:00:00]} 60. b4 {[%emt 0:00:15]} Ka6 {[%emt 0:06:00]} 61. d5 {[%emt 0:00:41]} Rh3+ {[%emt 0:00:00]} 62. Kxe4 {[%emt 0:00:21]} Rh4+ {[%emt 0:00:00]} 63. Ke5 {[%emt 0:00:35]} Rxb4 {[%emt 0:00:00]} 64. d6 {[%emt 0:00:33]} Rb8 {[%emt 0:02:00]} 65. d7 {[%emt 0:00:25]} Rd8 {[%emt 0:00:00]} 66. Ke6 {[%emt 0:00:08]} h5 {[%emt 0:00:00]} 67. Ke7 {[%emt 0:00:13]} Rh8 {[%emt 0:00:00]} 68. d8=Q {[%emt 0:00:17]} Rxd8 {[%emt 0:00:00]} 69. Kxd8 {[%emt 0:00:10]} h4 {[%emt 0:00:00]} 70. Rh5 {[%emt 0:00:13]} h3 {[%emt 0:00:00]} 71. Rxh3 {[%emt 0:00:12]} Kxa5 {[%emt 0:00:00]} 72. Rb3 {[%emt 0:00:10]} 1-0

[Event "Catalan Youth Championship 2024"]
[Site "Cambrils"]
[Date "2024.03.24"]
[Round "3.15"]
[White "Pinyol i Llora, Julia"]
[Black "Anguera Staina, Maxim"]
[Result "0-1"]
[ECO "E65"]
[WhiteElo "1950"]
[BlackElo "2020"]
[Annotator "RC"]
[PlyCount "108"]
[EventDate "2024.03.13"]
[EventType "swiss"]
[EventCountry "ESP"]
[SourceTitle "playchess.com"]
[Source "ChessBase"]
[SourceQuality "1"]
[TimeControl "5400+30"]

1. d4 {[%emt 0:07:32]} Nf6 {[%emt 0:00:07]} 2. c4 {[%emt 0:00:04]} g6 {[%emt 0:00:05]} 3. Nc3 {[%emt 0:00:03]} Bg7 {[%emt 0:00:07]} 4. g3 {[%emt 0:00:04]} O-O {[%emt 0:00:24]} 5. Bg2 {[%emt 0:00:10]} d6 {[%emt 0:00:06]} 6. Nf3 {[%emt 0:00:03]} Nfd7 {[%emt 0:00:09]} 7. O-O {[%emt 0:00:28]} c5 {[%emt 0:00:32]} 8. d5 {[%emt 0:02:33]} Na6 {[%emt 0:00:22]} 9. e4 {[%emt 0:03:48]} Nc7 {[%emt 0:00:05]} 10. Be3 {[%emt 0:01:08]} Rb8 {[%emt 0:00:06]} 11. Qe2 {[%emt 0:01:11]} a6 {[%emt 0:08:04]} 12. a4 {[%emt 0:03:10]} b5 {[%emt 0:00:49]} 13. axb5 {[%emt 0:03:30]} axb5 {[%emt 0:00:02]} 14. cxb5 {[%emt 0:03:22]} Ne5 {[%emt 0:01:18]} 15. Nxe5 {[%emt 0:06:36]} Bxe5 {[%emt 0:00:02]} 16. Ra3 {[%emt 0:13:09]} Bxc3 {[%emt 0:06:12]} 17. Rxc3 {[%emt 0:04:10]} Nxb5 {[%emt 1:20:30]} 18. Rcc1 {[%emt 0:00:43]} Nd4 {[%emt 0:00:00]} 19. Bxd4 {[%emt 0:04:22]} cxd4 {[%emt 0:00:00]} 20. Rfd1 {[%emt 0:04:50]} Qb6 {[%emt 0:00:00]} 21. Qd3 {[%emt 0:03:18]} Ba6 {[%emt 0:00:00]} 22. Qxd4 {[%emt 0:00:22]} Qxd4 {[%emt 0:00:00]} 23. Rxd4 {[%emt 0:00:02]} Rxb2 {[%emt 0:00:00]} 24. Bf1 {[%emt 0:01:15]} Bxf1 {[%emt 0:00:00]} 25. Kxf1 {[%emt 0:00:28]} Ra8 {[%emt 0:00:00]} 26. Kg2 {[%emt 0:10:14]} Raa2 {[%emt 0:00:00]} 27. Rf1 {[%emt 0:00:03]} Kg7 {[%emt 0:00:00]} 28. Rd3 {[%emt 0:03:19]} g5 {[%emt 0:00:00]} 29. h3 {[%emt 0:05:58]} h5 {[%emt 0:00:00]} 30. Rdd1 {[%emt 0:03:40]} Kf6 {[%emt 0:00:00]} 31. Ra1 {[%emt 0:01:52]} Ke5 {[%emt 0:00:00]} 32. Rxa2 {[%emt 0:03:34]} Rxa2 {[%emt 0:00:00]} 33. Re1 {[%emt 0:00:49]} Ra4 {[%emt 0:00:00]} 34. Kf3 {[%emt 0:02:53]} g4+ {[%emt 0:00:00]} 35. hxg4 {[%emt 0:00:24]} Ra3+ {[%emt 0:00:00]} 36. Kg2 {[%emt 0:01:48]} hxg4 {[%emt 0:00:00]} 37. Re2 {[%emt 0:00:10]} f6 {[%emt 0:00:00]} 38. Re1 {[%emt 0:00:38]} Ra4 {[%emt 0:00:00]} 39. f4+ {[%emt 0:01:33]} Kd4 {[%emt 0:00:00]} 40. Kf2 {[%emt 0:00:50]} Ra2+ {[%emt 0:00:00]} 41. Kf1 {[%emt 0:00:23]} Ra3 {[%emt 0:00:00]} 42. Kf2 {[%emt 0:01:46]} Rf3+ {[%emt 0:00:00]} 43. Kg2 {[%emt 0:00:05]} Re3 {[%emt 0:00:00]} 44. Ra1 {[%emt 0:02:42]} Kxe4 {[%emt 0:00:00]} 45. Ra5 {[%emt 0:01:04]} Re2+ {[%emt 0:00:00]} 46. Kf1 {[%emt 0:00:03]} Kf3 {[%emt 0:00:00]} 47. Ra4 {[%emt 0:00:38]} Rf2+ {[%emt 0:00:00]} 48. Ke1 {[%emt 0:00:24]} Re2+ {[%emt 0:00:00]} 49. Kf1 {[%emt 0:00:48]} Re4 {[%emt 0:00:00]} 50. Ra3+ {[%emt 0:00:52]} Re3 {[%emt 0:00:00]} 51. Ra2 {[%emt 0:00:04]} Kxg3 {[%emt 0:00:00]} 52. Rg2+ {[%emt 0:00:03]} Kxf4 {[%emt 0:00:00]} 53. Kf2 {[%emt 0:00:13]} Ra3 {[%emt 0:00:00]} 54. Kg1 {[%emt 0:00:46]} Rg3 {[%emt 0:00:00]} 0-1

[Event "Catalan Youth Championship 2024"]
[Site "Cambrils"]
[Date "2024.03.24"]
[Round "3.16"]
[White "Vila I Bague, Arnau"]
[Black "Fernandez Climent, Albert"]
[Result "0-1"]
[ECO "C11"]
[WhiteElo "1947"]
[BlackElo "1978"]
[Annotator "RC"]
[PlyCount "54"]
[EventDate "2024.03.13"]
[EventType "swiss"]
[EventCountry "ESP"]
[SourceTitle "playchess.com"]
[Source "ChessBase"]
[SourceQuality "1"]
[TimeControl "5400+30"]

1. e4 {[%emt 0:00:04]} e6 {[%emt 0:01:35]} 2. d4 {[%emt 0:00:06]} d5 {[%emt 0:00:04]} 3. Nc3 {[%emt 0:00:14]} Nf6 {[%emt 0:00:05]} 4. e5 {[%emt 0:00:05]} Nfd7 {[%emt 0:00:09]} 5. f4 {[%emt 0:00:12]} c5 {[%emt 0:00:05]} 6. Nf3 {[%emt 0:00:14]} Nc6 {[%emt 0:00:06]} 7. Be3 {[%emt 0:00:06]} Be7 {[%emt 0:00:25]} 8. Qd2 {[%emt 0:01:17]} O-O {[%emt 0:00:16]} 9. dxc5 {[%emt 0:00:05]} Qa5 {[%emt 0:00:10]} 10. O-O-O {[%emt 0:03:25]} b6 {[%emt 1:32:35]} 11. Bb5 {[%emt 0:03:05]} Nb4 {[%emt 0:00:30]} 12. a3 {[%emt 0:07:16]} bxc5 {[%emt 0:00:00]} 13. axb4 {[%emt 0:16:55]} cxb4 {[%emt 0:00:00]} 14. Nb1 {[%emt 0:00:09]} Qxb5 {[%emt 0:00:00]} 15. Nd4 {[%emt 0:00:45]} Qb7 {[%emt 0:02:00]} 16. Qd3 {[%emt 0:17:13]} Nc5 {[%emt 0:00:00]} 17. Qb5 {[%emt 0:01:07]} Qxb5 {[%emt 0:00:00]} 18. Nxb5 {[%emt 0:00:07]} Bd7 {[%emt 0:00:00]} 19. Nd6 {[%emt 0:06:01]} Bxd6 {[%emt 0:00:00]} 20. exd6 {[%emt 0:00:05]} Rfc8 {[%emt 0:00:00]} 21. Nd2 {[%emt 0:12:18]} Nb7 {[%emt 0:00:00]} 22. Nb3 {[%emt 0:02:04]} a5 {[%emt 0:00:00]} 23. f5 {[%emt 0:06:21]} a4 {[%emt 0:00:00]} 24. Nd4 {[%emt 0:02:31]} e5 {[%emt 0:00:00]} 25. Nf3 {[%emt 0:00:17]} Bxf5 {[%emt 0:00:00]} 26. Rd2 {[%emt 0:01:07]} d4 {[%emt 0:00:00]} 27. Bxd4 {[%emt 0:00:35]} exd4 {[%emt 0:00:00]} 0-1

[Event "Catalan Youth Championship 2024"]
[Site "Cambrils"]
[Date "2024.03.24"]
[Round "3.17"]
[White "Ano Pla, Gerard"]
[Black "Vinuesa Sorli, Ruben"]
[Result "1-0"]
[ECO "A36"]
[WhiteElo "2230"]
[BlackElo "1996"]
[Annotator "RC"]
[PlyCount "79"]
[EventDate "2024.03.13"]
[EventType "swiss"]
[EventCountry "ESP"]
[SourceTitle "playchess.com"]
[Source "ChessBase"]
[SourceQuality "1"]
[TimeControl "5400+30"]

1. c4 {[%emt 0:00:02]} Nf6 {[%emt 0:00:19]} 2. Nc3 {[%emt 0:00:04]} g6 {[%emt 0:00:19]} 3. e4 {[%emt 0:00:15]} d6 {[%emt 0:00:38]} 4. g3 {[%emt 0:00:06]} Bg7 {[%emt 0:00:38]} 5. Bg2 {[%emt 0:00:44]} O-O {[%emt 0:00:33]} 6. Nge2 {[%emt 0:00:13]} e5 {[%emt 0:01:03]} 7. O-O {[%emt 0:01:23]} c5 {[%emt 0:08:16]} 8. d3 {[%emt 0:01:46]} Nc6 {[%emt 0:00:54]} 9. f4 {[%emt 0:01:13]} a6 {[%emt 0:03:13]} 10. a4 {[%emt 0:02:51]} Bd7 {[%emt 0:03:19]} 11. h3 {[%emt 1:27:23]} Nd4 {[%emt 0:13:35]} 12. f5 {[%emt 0:00:00]} b5 {[%emt 0:10:44]} 13. g4 {[%emt 0:00:00]} b4 {[%emt 0:06:58]} 14. Nb1 {[%emt 0:00:00]} Ne8 {[%emt 0:03:01]} 15. Nxd4 {[%emt 0:00:00]} cxd4 {[%emt 0:05:27]} 16. a5 {[%emt 0:00:00]} Rb8 {[%emt 0:05:09]} 17. Nd2 {[%emt 0:00:00]} g5 {[%emt 0:13:15]} 18. Nf3 {[%emt 0:00:00]} f6 {[%emt 0:01:53]} 19. Bd2 {[%emt 0:00:00]} Qc7 {[%emt 0:03:17]} 20. b3 {[%emt 0:00:00]} h6 {[%emt 0:03:26]} 21. Ne1 {[%emt 0:00:00]} d5 {[%emt 0:08:59]} 22. exd5 {[%emt 0:00:00]} Rf7 {[%emt 0:06:34]} 23. Nc2 {[%emt 0:00:00]} Bf8 {[%emt 0:00:00]} 24. Qe1 {[%emt 0:00:00]} Qc5 {[%emt 0:00:00]} 25. Be4 {[%emt 0:00:00]} Bd6 {[%emt 0:01:30]} 26. h4 {[%emt 0:00:00]} Rb7 {[%emt 0:00:00]} 27. Kg2 {[%emt 0:00:00]} Rh7 {[%emt 0:00:00]} 28. Rh1 {[%emt 0:00:00]} Bf8 {[%emt 0:00:39]} 29. Rh3 {[%emt 0:00:00]} Qd6 {[%emt 0:00:32]} 30. Qh1 {[%emt 0:00:00]} Qe7 {[%emt 0:00:44]} 31. Kf2 {[%emt 0:00:00]} Qg7 {[%emt 0:00:33]} 32. Qf3 {[%emt 0:00:00]} Qh8 {[%emt 0:00:28]} 33. d6 {[%emt 0:00:00]} Nxd6 {[%emt 0:00:33]} 34. Bd5+ {[%emt 0:00:00]} Kg7 {[%emt 0:00:28]} 35. Bxb7 {[%emt 0:00:00]} Nxb7 {[%emt 0:00:26]} 36. Qxb7 {[%emt 0:00:00]} Kg8 {[%emt 0:00:02]} 37. Qd5+ {[%emt 0:00:00]} Rf7 {[%emt 0:00:01]} 38. Rah1 {[%emt 0:00:00]} Qh7 {[%emt 0:01:14]} 39. c5 {[%emt 0:00:00]} gxh4 {[%emt 0:00:46]} 40. Rxh4 {[%emt 0:00:00]} 1-0